bitfinex/quotes_BTCUSD_20241128
["timestamp","ask_amount","ask_price","bid_price","bid_amount"]
[1732763225110,0.00895634,95564.0,95563.0,0.06542556]
[1732763225329,0.11359734,95564.0,95563.0,0.06542556]
[1732763225596,0.00895634,95564.0,95563.0,0.06542556]
[1732763226316,0.00895634,95564.0,95563.0,0.17006856]
[1732763226538,0.002,95564.0,95563.0,0.27291377]
[1732763226791,0.00231469,95588.0,95563.0,0.16827077]
[1732763227010,0.209233,95587.0,95564.0,0.10284521]
[1732763227268,0.00700536,95587.0,95564.0,0.10284521]
[1732763227506,0.104623,95581.0,95565.0,0.10464]
[1732763227726,0.209235,95586.0,95564.0,0.09588215]
[1732763227727,0.104624,95580.0,95564.0,0.09588215]
[1732763227950,0.0055958,95580.0,95564.0,0.09588215]
[1732763228198,0.1102198,95580.0,95564.0,0.09542623]
[1732763228431,0.0017168,95576.0,95564.0,0.20006623]
[1732763228650,0.0017168,95576.0,95565.0,0.10457188]
[1732763228878,0.00558975,95575.0,95564.0,0.09542623]
[1732763229104,0.0017168,95576.0,95564.0,0.09542623]
[1732763229555,0.0017168,95576.0,95565.0,0.023]
[1732763230701,0.10464,95565.0,95564.0,0.002]
[1732763230964,0.209277,95568.0,95563.0,0.06542556]
[1732763231184,0.20748621,95564.0,95563.0,0.06542556]
[1732763231427,0.36541251,95564.0,95563.0,0.06542556]
[1732763231640,0.36309703,95564.0,95563.0,0.06542556]
[1732763233081,0.36309703,95564.0,95563.0,0.08842556]
[1732763233082,0.37627076,95564.0,95563.0,0.08842556]
[1732763233311,0.37327076,95564.0,95563.0,0.08842556]
[1732763233550,0.37627076,95564.0,95563.0,0.08842556]
[1732763233764,0.37927076,95564.0,95563.0,0.08942556]
[1732763234196,0.37627076,95564.0,95563.0,0.08942556]
[1732763234413,0.38027076,95564.0,95563.0,0.08942556]
[1732763235173,0.23027076,95564.0,95563.0,0.08942556]
[1732763235396,0.11725182,95564.0,95563.0,0.08942556]
[1732763235623,0.22009703,95564.0,95563.0,0.08942556]
[1732763236316,0.21609703,95564.0,95563.0,0.08942556]
[1732763236749,0.22009703,95564.0,95563.0,0.08942556]
[1732763237199,0.21609703,95564.0,95563.0,0.08942556]
[1732763237662,0.22009703,95564.0,95563.0,0.08942556]
[1732763239311,0.2230166,95564.0,95563.0,0.08942556]
[1732763240199,0.2247336,95564.0,95563.0,0.08942556]
[1732763243616,0.01724739,95564.0,95563.0,0.08942556]
[1732763243834,0.12188839,95564.0,95563.0,0.08942556]
[1732763244261,0.11531301,95564.0,95563.0,0.08942556]
[1732763244710,0.11931301,95564.0,95563.0,0.08942556]
[1732763245180,0.11231301,95564.0,95563.0,0.08842556]
[1732763246037,0.11531301,95564.0,95563.0,0.08842556]
[1732763246262,0.11231301,95564.0,95563.0,0.08842556]
[1732763246733,0.37047339,95564.0,95563.0,0.06642556]
[1732763246961,0.36815822,95564.0,95563.0,0.06542556]
[1732763247397,0.36515822,95564.0,95563.0,0.06542556]
[1732763247856,0.36715822,95564.0,95563.0,0.06542556]
[1732763248320,0.36515822,95564.0,95563.0,0.08842556]
[1732763248552,0.37215822,95564.0,95563.0,0.08842556]
[1732763248769,0.36915822,95564.0,95563.0,0.08842556]
[1732763249225,0.37215822,95564.0,95563.0,0.08942556]
[1732763249450,0.37215822,95564.0,95563.0,0.06542556]
[1732763249451,0.36915822,95564.0,95563.0,0.06542556]
[1732763249669,0.01,95559.0,95555.0,2.0]
[1732763249893,0.37749521,95556.0,95555.0,1.87442]
[1732763250476,0.38363907,95556.0,95555.0,1.69191654]
[1732763250954,0.39394608,95556.0,95555.0,1.58726654]
[1732763251189,0.53635665,95556.0,95555.0,1.58826654]
[1732763251649,0.41503203,95556.0,95555.0,1.58726654]
[1732763252092,0.24294608,95556.0,95555.0,1.58826654]
[1732763252328,0.25194608,95556.0,95555.0,1.59012504]
[1732763252565,0.24294608,95556.0,95555.0,1.58912504]
[1732763253030,0.25194608,95556.0,95555.0,1.59012504]
[1732763253480,0.38394608,95556.0,95555.0,1.58812504]
[1732763253709,0.39294608,95556.0,95555.0,1.59012504]
[1732763253940,0.40194608,95556.0,95555.0,1.59012504]
[1732763254436,0.39294608,95556.0,95555.0,1.58912504]
[1732763254651,0.40094608,95556.0,95555.0,1.59012504]
[1732763254899,0.39094608,95556.0,95555.0,1.59012504]
[1732763256064,0.40094608,95556.0,95555.0,1.59012504]
[1732763256941,0.39094608,95556.0,95555.0,1.59012504]
[1732763257171,0.39094608,95556.0,95555.0,1.61312504]
[1732763257172,0.24094608,95556.0,95555.0,1.61312504]
[1732763257842,0.23294608,95556.0,95555.0,1.61212504]
[1732763258058,0.22263907,95556.0,95555.0,1.61212504]
[1732763258278,0.12779386,95556.0,95555.0,1.61312504]
[1732763258522,0.11879386,95556.0,95555.0,1.61212504]
[1732763258988,0.12679386,95556.0,95555.0,1.61312504]
[1732763259229,0.11879386,95556.0,95555.0,1.61212504]
[1732763259492,0.01414386,95556.0,95555.0,1.61212504]
[1732763259717,0.01814386,95556.0,95555.0,1.61212504]
[1732763259935,0.004,95556.0,95555.0,1.61112504]
[1732763260179,0.11165,95556.0,95555.0,1.61112504]
[1732763260431,0.003,95556.0,95555.0,1.61112504]
[1732763260678,0.209288,95562.0,95556.0,0.023]
[1732763260908,0.10284521,95562.0,95556.0,0.023]
[1732763261139,0.00686942,95561.0,95556.0,0.023]
[1732763261374,0.11151442,95561.0,95556.0,0.023]
[1732763261605,0.00686942,95561.0,95556.0,0.023]
[1732763261827,0.104648,95559.0,95556.0,0.023]
[1732763262060,0.00686942,95561.0,95556.0,0.023]
[1732763262061,0.104645,95561.0,95556.0,0.023]
[1732763262278,0.00686697,95558.0,95556.0,0.023]
[1732763262498,0.104649,95557.0,95556.0,0.023]
[1732763263158,0.1115808,95557.0,95556.0,0.023]
[1732763264072,0.25465,95556.0,95555.0,1.58812504]
[1732763264291,0.36441258,95556.0,95555.0,1.58812504]
[1732763265011,0.26156737,95556.0,95555.0,1.58812504]
[1732763265236,0.26156737,95556.0,95555.0,1.61112504]
[1732763266122,0.26456737,95556.0,95555.0,1.61112504]
[1732763267194,0.26656737,95556.0,95555.0,1.61112504]
[1732763268073,0.01191737,95556.0,95555.0,1.61112504]
[1732763268291,0.01191737,95556.0,95555.0,1.71577604]
[1732763268521,0.005,95556.0,95555.0,1.61112504]
[1732763268780,0.005,95556.0,95555.0,1.71577604]
[1732763269433,0.002,95556.0,95555.0,1.71577604]
[1732763269912,0.001717,95561.0,95560.0,0.104646]
[1732763270144,0.001717,95561.0,95560.0,0.127646]
[1732763270597,0.001717,95561.0,95560.0,0.23049121]
[1732763271058,0.001717,95561.0,95560.0,0.32425268]
[1732763271297,0.001717,95561.0,95560.0,0.23049121]
[1732763271742,0.104604,95598.0,95575.0,0.104629]
[1732763271956,0.15,95596.0,95575.0,0.127629]
[1732763272840,0.254607,95596.0,95575.0,0.127629]
[1732763273060,0.20922,95593.0,95575.0,0.127629]
[1732763273280,0.104611,95592.0,95575.0,0.131629]
[1732763273497,0.209221,95593.0,95575.0,0.027]
[1732763273709,0.209221,95593.0,95568.0,0.209273]
[1732763273710,0.209221,95593.0,95573.0,0.023]
[1732763273945,0.0027168,95576.0,95575.0,0.032]
[1732763274634,0.0027168,95576.0,95575.0,0.035]
[1732763275338,0.0027168,95576.0,95570.0,0.10284521]
[1732763275339,0.0017168,95576.0,95571.0,0.023]
[1732763275579,0.0017168,95576.0,95571.0,0.10284521]
[1732763275802,0.0017168,95576.0,95575.0,0.027]
[1732763276012,0.0017168,95576.0,95575.0,0.023]
[1732763276243,0.0017168,95576.0,95575.0,0.127629]
[1732763276467,0.0017168,95576.0,95575.0,0.23547421]
[1732763276899,0.0017168,95576.0,95575.0,0.23747421]
[1732763277181,0.0017168,95576.0,95575.0,0.23247421]
[1732763277576,0.0017168,95576.0,95575.0,0.23047421]
[1732763277797,0.0017168,95576.0,95575.0,0.23547421]
[1732763278484,0.0017168,95576.0,95575.0,0.13084521]
[1732763278698,0.0027168,95576.0,95575.0,0.13884521]
[1732763279117,0.0027168,95576.0,95575.0,0.24347421]
[1732763280045,0.0027168,95576.0,95575.0,0.23847421]
[1732763280531,0.0027168,95576.0,95575.0,0.24147421]
[1732763280969,0.0027168,95576.0,95575.0,0.23847421]
[1732763281651,0.0027168,95576.0,95575.0,0.24347421]
[1732763283905,0.16056723,95609.0,95575.0,0.13884521]
[1732763284146,0.1260944,95620.0,95575.0,0.13884521]
[1732763284147,0.15,95614.0,95593.0,0.023]
[1732763284369,0.00231411,95613.0,95584.0,0.023]
[1732763284604,0.00231411,95617.0,95586.0,0.104616]
[1732763284820,0.00231411,95617.0,95585.0,0.10284521]
[1732763284821,0.15,95615.0,95589.0,0.023]
[1732763285009,0.104592,95609.0,95592.0,0.023]
[1732763285254,0.118593,95609.0,95589.0,0.104613]
[1732763285482,0.118593,95609.0,95590.0,0.023]
[1732763285483,0.104597,95605.0,95590.0,0.023]
[1732763285700,0.104595,95607.0,95590.0,0.023]
[1732763285920,0.104594,95607.0,95590.0,0.023]
[1732763286349,0.006,95609.0,95590.0,0.023]
[1732763286350,0.104597,95605.0,95590.0,0.023]
[1732763286563,0.014,95609.0,95590.0,0.023]
[1732763286787,0.104596,95606.0,95590.0,0.023]
[1732763287221,0.1260944,95610.0,95588.0,0.023]
[1732763287436,0.1260944,95600.0,95586.0,0.001]
[1732763287653,0.209185,95609.0,95586.0,0.001]
[1732763287654,0.104614,95589.0,95586.0,0.001]
[1732763287870,0.1260944,95596.0,95566.0,0.209278]
[1732763287871,0.209218,95594.0,95573.0,0.104631]
[1732763288093,0.104614,95590.0,95570.0,0.12555468]
[1732763288326,0.104214,95590.0,95571.0,0.104633]
[1732763288543,0.20922,95593.0,95571.0,0.104633]
[1732763288810,0.20922,95593.0,95571.0,0.023]
[1732763289048,0.20922,95593.0,95587.0,0.023]
[1732763289263,0.104615,95588.0,95587.0,0.023]
[1732763289509,0.20922,95593.0,95587.0,0.023]
[1732763289726,0.104613,95590.0,95587.0,0.023]
[1732763289951,0.209215,95595.0,95587.0,0.023]
[1732763290169,0.104614,95590.0,95587.0,0.023]
[1732763290380,0.21153255,95594.0,95587.0,0.023]
[1732763290599,0.104615,95588.0,95587.0,0.023]
[1732763291960,0.104615,95588.0,95587.0,0.024]
[1732763292631,0.104615,95588.0,95587.0,0.026]
[1732763293287,0.104615,95588.0,95587.0,0.003]
[1732763293288,0.20746021,95588.0,95587.0,0.003]
[1732763293543,0.35746021,95588.0,95587.0,0.003]
[1732763293753,0.36746021,95588.0,95587.0,0.003]
[1732763294432,0.36746021,95588.0,95587.0,0.002]
[1732763294650,0.37446021,95588.0,95587.0,0.003]
[1732763294890,0.37446021,95588.0,95587.0,0.001]
[1732763295156,0.38460539,95588.0,95587.0,0.001]
[1732763295360,0.15,95584.0,95556.0,0.023]
[1732763295614,0.01,95586.0,95556.0,0.023]
[1732763295615,0.104649,95557.0,95556.0,0.023]
[1732763297445,0.104649,95557.0,95556.0,0.024]
[1732763297877,0.104649,95557.0,95556.0,0.023]
[1732763298093,0.105649,95557.0,95556.0,0.023]
[1732763298534,0.105649,95557.0,95556.0,0.0238585]
[1732763308933,0.105649,95557.0,95556.0,0.0008585]
[1732763308934,0.20849421,95557.0,95556.0,0.0008585]
[1732763309153,0.21080964,95557.0,95556.0,0.0008585]
[1732763309389,0.36080964,95557.0,95556.0,0.0008585]
[1732763309603,0.35849421,95557.0,95556.0,0.0008585]
[1732763310289,0.35749421,95557.0,95556.0,0.0008585]
[1732763310553,0.35749421,95557.0,95556.0,0.0018585]
[1732763310554,0.36449421,95557.0,95556.0,0.0018585]
[1732763310793,0.21449421,95557.0,95556.0,0.0248585]
[1732763311005,0.20749421,95557.0,95556.0,0.0238585]
[1732763311436,0.21249421,95557.0,95556.0,0.0238585]
[1732763311898,0.21249421,95557.0,95556.0,0.0248585]
[1732763311899,0.21449421,95557.0,95556.0,0.0248585]
[1732763312113,0.20749421,95557.0,95556.0,0.0238585]
[1732763312323,0.21249421,95557.0,95556.0,0.0238585]
[1732763312557,0.21949421,95557.0,95556.0,0.0248585]
[1732763312985,0.21949421,95557.0,95556.0,0.0018585]
[1732763313199,0.21249421,95557.0,95556.0,0.0008585]
[1732763313629,0.20749421,95557.0,95556.0,0.0008585]
[1732763313835,0.21249421,95557.0,95556.0,0.0008585]
[1732763314490,0.20749421,95557.0,95556.0,0.0008585]
[1732763314935,0.21749421,95557.0,95556.0,0.0018585]
[1732763315375,0.21049421,95557.0,95556.0,0.0008585]
[1732763315599,0.21449421,95557.0,95556.0,0.0008585]
[1732763321191,0.36449421,95557.0,95556.0,0.0008585]
[1732763324235,0.38369102,95557.0,95556.0,0.0008585]
[1732763324921,0.40288607,95557.0,95556.0,0.0008585]
[1732763325370,0.41288607,95557.0,95556.0,0.0008585]
[1732763326101,0.11465,95556.0,95555.0,1.58812504]
[1732763326317,0.38900605,95556.0,95555.0,1.58812504]
[1732763326536,0.42188188,95556.0,95555.0,1.48347504]
[1732763327596,0.43388188,95556.0,95555.0,1.48447504]
[1732763328065,0.40968683,95556.0,95555.0,1.48447504]
[1732763328301,0.42885587,95556.0,95555.0,1.48447504]
[1732763328527,1.12885587,95556.0,95555.0,1.33632521]
[1732763328945,1.12185587,95556.0,95555.0,1.33532521]
[1732763329578,1.13985587,95556.0,95555.0,1.33732521]
[1732763333780,1.11985587,95556.0,95555.0,1.33732521]
[1732763333989,0.94466425,95556.0,95555.0,1.33732521]
[1732763334436,0.92549521,95556.0,95555.0,1.33732521]
[1732763334676,0.93566425,95556.0,95555.0,1.33632521]
[1732763335415,1.08566425,95556.0,95555.0,1.33632521]
[1732763336097,1.10566425,95556.0,95555.0,1.1313566]
[1732763336550,1.11466425,95556.0,95555.0,1.1323566]
[1732763336761,1.11466425,95556.0,95555.0,1.1313566]
[1732763336762,1.10566425,95556.0,95555.0,1.1313566]
[1732763337391,1.09666425,95556.0,95555.0,1.1303566]
[1732763337841,1.10466425,95556.0,95555.0,1.0894966]
[1732763338302,1.18829702,95556.0,95555.0,0.9838466]
[1732763338529,1.12457144,95556.0,95555.0,0.97143716]
[1732763338745,1.15427928,95556.0,95555.0,0.97243716]
[1732763338987,1.15427928,95556.0,95555.0,0.86878716]
[1732763338988,1.19391612,95556.0,95555.0,0.86878716]
[1732763339233,1.19391612,95556.0,95555.0,0.86818716]
[1732763339656,1.16600893,95556.0,95555.0,0.86818716]
[1732763339882,1.20653274,95556.0,95555.0,0.86818716]
[1732763340097,1.11466425,95556.0,95555.0,0.86818716]
[1732763340348,0.94466425,95556.0,95555.0,0.86818716]
[1732763340816,0.94464687,95556.0,95555.0,0.86818716]
[1732763341047,0.92549521,95556.0,95555.0,0.86818716]
[1732763341720,0.91649521,95556.0,95555.0,0.86718716]
[1732763341967,1.09565044,95556.0,95555.0,0.86718716]
[1732763342198,1.08665044,95556.0,95555.0,0.86618716]
[1732763342656,1.08665044,95556.0,95555.0,0.86718716]
[1732763342657,1.09565044,95556.0,95555.0,0.86718716]
[1732763343360,1.06749521,95556.0,95555.0,0.86618716]
[1732763343589,1.09465445,95556.0,95555.0,0.86718716]
[1732763343831,1.10365445,95556.0,95555.0,0.86818716]
[1732763344048,1.05749521,95556.0,95555.0,0.86618716]
[1732763344282,0.36649521,95556.0,95555.0,0.86718716]
[1732763344727,0.35749521,95556.0,95555.0,0.86618716]
[1732763345154,0.36649521,95556.0,95555.0,0.86718716]
[1732763345593,0.37549521,95556.0,95555.0,0.86818716]
[1732763345837,0.36649521,95556.0,95555.0,0.86718716]
[1732763346264,0.37549521,95556.0,95555.0,0.86818716]
[1732763346478,0.36649521,95556.0,95555.0,0.86718716]
[1732763347587,0.37549521,95556.0,95555.0,0.86818716]
[1732763348046,0.36649521,95556.0,95555.0,0.86718716]
[1732763348267,0.37421061,95556.0,95555.0,0.86818716]
[1732763348485,0.22421061,95556.0,95555.0,0.86818716]
[1732763349144,0.1213654,95556.0,95555.0,0.89118716]
[1732763349840,0.0167154,95556.0,95555.0,0.86818716]
[1732763350061,0.0107154,95556.0,95555.0,0.86718716]
[1732763350300,0.0017154,95556.0,95555.0,0.86618716]
[1732763350516,0.0077154,95556.0,95555.0,0.86718716]
[1732763350742,0.0147154,95556.0,95555.0,0.86818716]
[1732763350969,0.0017154,95556.0,95555.0,0.86618716]
[1732763351409,0.0067154,95556.0,95555.0,0.86618716]
[1732763351858,0.0017154,95556.0,95555.0,0.86618716]
[1732763352075,0.0017154,95556.0,95555.0,0.99383816]
[1732763352536,0.0087154,95556.0,95555.0,0.99483816]
[1732763352746,0.0017154,95556.0,95555.0,0.99383816]
[1732763353178,0.0017154,95556.0,95555.0,0.99583816]
[1732763353397,0.0017154,95556.0,95555.0,0.99383816]
[1732763353901,0.0017154,95556.0,95555.0,0.99583816]
[1732763354116,0.0017154,95556.0,95555.0,0.99683816]
[1732763354793,0.0017154,95556.0,95555.0,0.99583816]
[1732763355027,0.0017154,95556.0,95555.0,1.09968337]
[1732763355449,0.0017154,95556.0,95555.0,1.09768337]
[1732763355660,0.0017154,95556.0,95555.0,1.19157523]
[1732763355881,0.0017154,95556.0,95555.0,1.19857523]
[1732763356098,0.0017154,95556.0,95555.0,1.19157523]
[1732763356329,0.0017154,95556.0,95555.0,1.09768337]
[1732763356543,0.0017154,95556.0,95555.0,1.12661662]
[1732763356761,0.0017154,95556.0,95555.0,1.12961662]
[1732763357227,0.0017154,95556.0,95555.0,1.12661662]
[1732763357671,0.0027154,95556.0,95555.0,1.13361662]
[1732763358341,0.0027154,95556.0,95555.0,1.14361662]
[1732763361029,0.0027154,95556.0,95555.0,1.30361662]
[1732763361240,0.001717,95576.0,95555.0,1.30361662]
[1732763361241,0.001717,95576.0,95575.0,0.127629]
[1732763362833,0.001717,95576.0,95575.0,0.130629]
[1732763363279,0.106345,95576.0,95575.0,0.004]
[1732763363494,0.11645513,95576.0,95575.0,0.004]
[1732763363711,0.21150529,95576.0,95575.0,0.004]
[1732763363959,0.35919021,95576.0,95575.0,0.004]
[1732763364201,0.35919021,95576.0,95575.0,0.003]
[1732763364438,0.37169745,95576.0,95575.0,0.003]
[1732763364694,0.37169745,95576.0,95555.0,0.86618716]
[1732763364695,0.10465,95556.0,95555.0,0.86618716]
[1732763366264,0.10465,95556.0,95555.0,0.86918716]
[1732763366723,0.20749521,95556.0,95555.0,0.86918716]
[1732763366946,0.35981079,95556.0,95555.0,0.86918716]
[1732763367177,0.35749521,95556.0,95555.0,0.87018716]
[1732763367895,0.35749521,95556.0,95555.0,0.86918716]
[1732763368574,0.35749521,95556.0,95555.0,0.86618716]
[1732763368797,0.36649521,95556.0,95555.0,0.86718716]
[1732763369257,0.36449521,95556.0,95555.0,0.86718716]
[1732763369476,0.37349521,95556.0,95555.0,0.86818716]
[1732763369692,0.36649521,95556.0,95555.0,0.86718716]
[1732763370142,0.37249521,95556.0,95555.0,0.86818716]
[1732763370373,0.38283077,95556.0,95555.0,0.86818716]
[1732763371526,0.38454617,95556.0,95555.0,0.86818716]
[1732763371747,0.13170096,95556.0,95555.0,0.86818716]
[1732763377859,0.23454617,95556.0,95555.0,0.86818716]
[1732763378109,0.38454617,95556.0,95555.0,0.86818716]
[1732763390200,0.39454617,95556.0,95555.0,0.86818716]
[1732763390675,0.40454617,95556.0,95555.0,0.86818716]
[1732763390904,0.43166535,95556.0,95555.0,0.5284371]
[1732763391121,0.43166535,95556.0,95555.0,0.50882994]
[1732763391339,0.43166535,95556.0,95555.0,0.3684857]
[1732763391558,0.5972823,95556.0,95555.0,0.2820387]
[1732763391797,0.5972823,95556.0,95555.0,0.1844177]
[1732763392033,0.5972823,95556.0,95555.0,0.0730737]
[1732763392249,0.66159681,95556.0,95555.0,0.0580737]
[1732763392679,0.56776535,95556.0,95555.0,0.0590737]
[1732763392892,0.56776535,95556.0,95555.0,0.0336707]
[1732763393184,0.264671,95537.0,95536.0,0.0008576]
[1732763393397,0.264694,95516.0,95475.0,0.09369357]
[1732763393607,0.35753921,95516.0,95478.0,0.20947]
[1732763394031,0.35753921,95516.0,95483.0,0.10473]
[1732763394249,0.35753921,95516.0,95478.0,0.20947]
[1732763394462,0.35753921,95516.0,95482.0,0.209461]
[1732763394896,0.36153921,95516.0,95482.0,0.209461]
[1732763395122,0.36153921,95516.0,95483.0,0.10473]
[1732763395123,0.36353921,95516.0,95483.0,0.10473]
[1732763395342,0.36353921,95516.0,95485.0,0.104728]
[1732763395976,0.36353921,95516.0,95482.0,0.209461]
[1732763396188,0.36353921,95516.0,95490.0,0.104722]
[1732763396401,0.36353921,95516.0,95482.0,0.104731]
[1732763396611,0.36353921,95516.0,95483.0,0.104729]
[1732763397048,0.37366726,95516.0,95482.0,0.209461]
[1732763397273,0.37366726,95516.0,95478.0,0.20947]
[1732763397721,0.37366726,95516.0,95478.0,0.104736]
[1732763397935,0.38366726,95516.0,95471.0,0.0004]
[1732763398172,0.38366726,95516.0,95476.0,0.104737]
[1732763398392,0.38366726,95516.0,95476.0,0.104738]
[1732763398608,0.38366726,95516.0,95474.0,0.20948]
[1732763398819,0.38366726,95516.0,95479.0,0.104734]
[1732763399038,0.38366726,95516.0,95480.0,0.104733]
[1732763399256,0.38366726,95516.0,95474.0,0.20948]
[1732763399499,0.38366726,95516.0,95479.0,0.104734]
[1732763399773,0.38366726,95516.0,95474.0,0.20948]
[1732763399987,0.38366726,95516.0,95480.0,0.104733]
[1732763400463,0.38366726,95516.0,95479.0,0.104734]
[1732763401536,1.08366726,95516.0,95480.0,0.104733]
[1732763401770,1.08366726,95516.0,95474.0,0.20948]
[1732763402004,1.08366726,95516.0,95478.0,0.20947]
[1732763402245,1.08366726,95516.0,95484.0,0.104728]
[1732763402459,1.08366726,95516.0,95482.0,0.209462]
[1732763402668,1.07366726,95516.0,95484.0,0.104729]
[1732763403093,0.37366726,95516.0,95478.0,0.20947]
[1732763403341,0.37366726,95516.0,95482.0,0.209461]
[1732763403563,0.37366726,95516.0,95474.0,0.20948]
[1732763403779,0.38366726,95516.0,95474.0,0.20948]
[1732763404015,0.38366726,95516.0,95511.0,0.00258166]
[1732763404016,0.104698,95512.0,95511.0,0.00258166]
[1732763404235,0.104698,95512.0,95471.0,0.0004]
[1732763404236,0.26471,95501.0,95500.0,0.00086631]
[1732763404480,0.36755521,95501.0,95500.0,0.00086631]
[1732763405186,0.4023449,95501.0,95500.0,0.00086631]
[1732763405396,1.1023449,95501.0,95500.0,0.00086631]
[1732763406959,0.10472,95492.0,95471.0,0.0004]
[1732763407180,0.4123549,95492.0,95471.0,0.0004]
[1732763408354,1.1213549,95492.0,95491.0,0.0014]
[1732763408634,1.1233549,95492.0,95491.0,0.0014]
[1732763408864,1.07956521,95492.0,95491.0,0.0004]
[1732763409083,1.1143549,95492.0,95491.0,0.0004]
[1732763409954,1.1123549,95492.0,95491.0,0.0004]
[1732763410172,1.1213549,95492.0,95491.0,0.0004]
[1732763410395,0.4203549,95492.0,95491.0,0.0004]
[1732763410613,0.4113549,95492.0,95491.0,0.0004]
[1732763411076,0.4093549,95492.0,95491.0,0.0004]
[1732763411554,0.37356521,95492.0,95491.0,0.0004]
[1732763411774,0.20756521,95492.0,95491.0,0.0004]
[1732763411990,0.21588247,95492.0,95491.0,0.0004]
[1732763412206,0.22488247,95492.0,95491.0,0.0004]
[1732763412450,0.22256521,95492.0,95491.0,0.0004]
[1732763413125,0.37256521,95492.0,95491.0,0.0004]
[1732763413354,1.06656521,95492.0,95491.0,0.0004]
[1732763413571,1.06556521,95492.0,95491.0,0.0004]
[1732763414007,1.07456521,95492.0,95491.0,0.0004]
[1732763414240,1.05756521,95492.0,95491.0,0.0004]
[1732763414483,1.06556521,95492.0,95491.0,0.0004]
[1732763414915,1.05756521,95492.0,95491.0,0.0004]
[1732763415180,1.06656521,95492.0,95491.0,0.0004]
[1732763415403,1.06356521,95492.0,95491.0,0.0004]
[1732763416766,1.05756521,95492.0,95491.0,0.0004]
[1732763416978,1.07256521,95492.0,95491.0,0.0004]
[1732763417195,1.06356521,95492.0,95491.0,0.0004]
[1732763417408,1.05756521,95492.0,95491.0,0.0004]
[1732763417622,1.06656521,95492.0,95491.0,0.0004]
[1732763417848,0.11084521,95492.0,95491.0,0.0004]
[1732763418108,0.008,95492.0,95491.0,0.105121]
[1732763418326,0.009,95492.0,95491.0,0.0004]
[1732763418542,0.01019967,95501.0,95491.0,0.0004]
[1732763418803,0.006,95492.0,95491.0,0.0004]
[1732763419022,0.006,95492.0,95489.0,0.03248265]
[1732763419263,0.006,95492.0,95489.0,0.02700404]
[1732763419947,0.00231681,95500.0,95489.0,0.02700404]
[1732763420165,0.01018403,95496.0,95489.0,0.02700404]
[1732763420402,0.00231682,95500.0,95491.0,0.000858]
[1732763420612,0.009,95492.0,95491.0,0.000858]
[1732763421271,0.104713,95499.0,95491.0,0.000858]
[1732763421495,0.15,95500.0,95491.0,0.000858]
[1732763421496,0.254712,95500.0,95491.0,0.000858]
[1732763421713,0.10284521,95503.0,95491.0,0.000858]
[1732763421714,0.002,95492.0,95491.0,0.000858]
[1732763421927,0.00231681,95501.0,95491.0,0.000858]
[1732763422361,0.002,95492.0,95491.0,0.000858]
[1732763422589,0.003,95492.0,95491.0,0.000858]
[1732763422877,0.003,95492.0,95491.0,0.128579]
[1732763423129,0.003,95492.0,95491.0,0.24142421]
[1732763423364,0.003,95492.0,95491.0,0.25142421]
[1732763423802,0.002,95492.0,95491.0,0.25142421]
[1732763424239,0.00231612,95537.0,95503.0,0.023]
[1732763424480,0.00231612,95537.0,95521.0,0.104688]
[1732763424691,0.00231612,95537.0,95515.0,0.023]
[1732763424922,0.01017682,95526.0,95517.0,0.023]
[1732763425186,0.01017682,95526.0,95481.0,0.09336851]
[1732763425187,0.00231589,95541.0,95523.0,0.127686]
[1732763425463,0.00231589,95550.0,95523.0,0.127686]
[1732763425689,0.00231571,95554.0,95523.0,0.127686]
[1732763425902,0.1063654,95556.0,95523.0,0.127686]
[1732763425903,0.005716,95524.0,95523.0,0.127686]
[1732763426123,0.005716,95524.0,95523.0,0.23053121]
[1732763427044,0.007716,95524.0,95523.0,0.23053121]
[1732763427275,0.003716,95524.0,95523.0,0.23053121]
[1732763427521,0.001716,95524.0,95523.0,0.23053121]
[1732763427783,0.002716,95524.0,95523.0,0.23053121]
[1732763427992,0.002716,95524.0,95523.0,0.24353121]
[1732763427993,0.001716,95524.0,95523.0,0.24353121]
[1732763428227,0.001716,95524.0,95523.0,0.25853121]
[1732763428439,0.002716,95524.0,95523.0,0.40853121]
[1732763428864,0.002716,95524.0,95523.0,0.40553121]
[1732763429106,0.001716,95524.0,95523.0,0.40053121]
[1732763429327,0.001716,95524.0,95523.0,0.4107018]
[1732763430019,0.0017154,95556.0,95540.0,0.01]
[1732763430242,0.0017154,95556.0,95555.0,0.127651]
[1732763431739,0.0017154,95556.0,95554.0,0.104652]
[1732763431943,0.0017154,95556.0,95555.0,0.130651]
[1732763432163,0.0017154,95556.0,95555.0,0.128651]
[1732763432374,0.0017154,95556.0,95555.0,0.129651]
[1732763432802,0.0017154,95556.0,95555.0,0.128651]
[1732763433901,0.0017154,95556.0,95555.0,0.127651]
[1732763434368,0.0017154,95556.0,95555.0,0.128651]
[1732763434802,0.0017154,95556.0,95555.0,0.129651]
[1732763435411,0.0017154,95556.0,95555.0,0.128651]
[1732763436089,0.0017154,95556.0,95555.0,0.130651]
[1732763436296,0.0017154,95556.0,95555.0,0.128651]
[1732763436916,0.0017154,95556.0,95555.0,0.127651]
[1732763437332,0.0017154,95556.0,95555.0,0.128651]
[1732763437765,0.0017154,95556.0,95555.0,0.127651]
[1732763438023,0.0017154,95556.0,95555.0,0.129651]
[1732763438244,0.0027154,95556.0,95555.0,0.23549621]
[1732763438493,0.0027154,95556.0,95555.0,0.24149621]
[1732763438494,0.0037154,95556.0,95555.0,0.24149621]
[1732763438713,0.0027154,95556.0,95555.0,0.24649621]
[1732763438938,0.0027154,95556.0,95555.0,0.25649621]
[1732763439421,0.0027154,95556.0,95555.0,0.40649621]
[1732763441535,0.0037154,95556.0,95555.0,0.41849621]
[1732763442168,0.0037154,95556.0,95555.0,0.40849621]
[1732763442381,0.0037154,95556.0,95555.0,0.24849621]
[1732763442728,0.00346423,95556.0,95555.0,0.122651]
[1732763443384,0.00246423,95556.0,95555.0,0.113651]
[1732763443801,0.00246423,95556.0,95555.0,0.136651]
[1732763444001,0.00346423,95556.0,95555.0,0.141651]
[1732763444226,0.00246423,95556.0,95555.0,0.132651]
[1732763444448,0.00246423,95556.0,95555.0,0.134651]
[1732763444673,0.00246423,95556.0,95555.0,0.139651]
[1732763445099,0.00246423,95556.0,95555.0,0.24249621]
[1732763445304,0.00246423,95556.0,95555.0,0.25249621]
[1732763445520,0.00246423,95556.0,95555.0,0.26249621]
[1732763445726,0.00246423,95556.0,95555.0,0.41249621]
[1732763446619,0.001715,95575.0,95574.0,0.12763]
[1732763447352,0.001715,95575.0,95574.0,0.23047521]